[Event "German Bundesliga 2023-24"]
[Site "Germany"]
[Date "2024.02.04"]
[Round "7"]
[White "Alonso Rosell, Alvar"]
[Black "Dautov, Rustem"]
[Result "1/2-1/2"]
[ECO "D30"]
[WhiteElo "2574"]
[BlackElo "2584"]
[Annotator "ChessBase"]
[PlyCount "81"]
[EventDate "2023.10.20"]
[EventType "team-tourn"]
[EventCountry "GER"]
[SourceTitle "playchess.com"]
[Source "ChessBase"]
[SourceQuality "1"]
[TimeControl "40/6000+30:3000+30"]

1. d4 {[%emt 0:00:03]} d5 {[%emt 0:00:22]} 2. c4 {[%emt 0:00:05]} e6 {[%emt 0:00:06]} 3. Nf3 {[%emt 0:00:03]} a6 {[%emt 0:05:17]} 4. Bg5 {[%emt 0:00:28]} Be7 {[%emt 0:02:01]} 5. Bxe7 {[%emt 0:00:15]} Qxe7 {[%emt 0:00:13]} 6. Nbd2 {[%emt 0:00:31]} Nf6 {[%emt 0:02:31]} 7. g3 {[%emt 0:00:35]} O-O {[%emt 0:08:20]} 8. Bg2 {[%emt 0:03:00]} b6 {[%emt 0:01:53]} 9. Rc1 {[%emt 0:00:58]} a5 {[%emt 0:18:23]} 10. O-O {[%emt 0:01:49]} Bb7 {[%emt 0:04:10]} 11. cxd5 {[%emt 0:14:07]} exd5 {[%emt 0:00:48]} 12. Nb1 {[%emt 0:02:33]} c5 {[%emt 0:15:21]} 13. Nc3 {[%emt 0:02:34]} Nbd7 {[%emt 0:01:01]} 14. Re1 {[%emt 0:02:19]} Rfd8 {[%emt 0:02:26]} 15. e3 {[%emt 0:16:47]} h6 {[%emt 0:01:35]} 16. Re2 {[%emt 0:07:20]} Qe6 {[%emt 0:08:25]} 17. b3 {[%emt 0:26:07]} Ne4 {[%emt 0:02:32]} 18. Rec2 {[%emt 0:05:06]} Nxc3 {[%emt 0:05:48]} 19. Rxc3 {[%emt 0:00:04]} a4 {[%emt 0:00:13]} 20. Ne1 {[%emt 0:07:25]} axb3 {[%emt 0:03:37]} 21. axb3 {[%emt 0:00:11]} Qf6 {[%emt 0:10:31]} 22. Qg4 {[%emt 0:13:23]} cxd4 {[%emt 0:05:42]} 23. Qxd4 {[%emt 0:01:10]} Qxd4 {[%emt 0:01:04]} 24. exd4 {[%emt 0:00:04]} Nf6 {[%emt 0:01:10]} 25. Nd3 {[%emt 0:01:23]} Rdc8 {[%emt 0:01:46]} 26. Rxc8+ {[%emt 0:03:26]} Rxc8 {[%emt 0:00:56]} 27. Rxc8+ {[%emt 0:00:32]} Bxc8 {[%emt 0:00:02]} 28. Nb4 {[%emt 0:00:18]} Bb7 {[%emt 0:02:46]} 29. f3 {[%emt 0:00:05]} Kf8 {[%emt 0:00:15]} 30. Kf2 {[%emt 0:00:59]} Ke7 {[%emt 0:00:13]} 31. Ke3 {[%emt 0:00:21]} Kd6 {[%emt 0:00:16]} 32. Nd3 {[%emt 0:01:07]} Ba6 {[%emt 0:02:20]} 33. Ne5 {[%emt 0:00:20]} Ke7 {[%emt 0:00:15]} 34. f4 {[%emt 0:00:51]} Bc8 {[%emt 0:02:53]} 35. Bf3 {[%emt 0:01:03]} h5 {[%emt 0:00:14]} 36. Nc6+ {[%emt 0:00:29]} Kd6 {[%emt 0:00:14]} 37. Ne5 {[%emt 0:00:04]} Ke7 {[%emt 0:00:15]} 38. Be2 {[%emt 0:00:14]} Bf5 {[%emt 0:00:43]} 39. Nc6+ {[%emt 0:00:24]} Kd6 {[%emt 0:00:13]} 40. Ne5 {[%emt 0:00:06]} Ke7 {[%emt 0:00:08]} 41. Nc6+ {[%emt 0:12:30]} 1/2-1/2

[Event "German Bundesliga 2023-24"]
[Site "Germany"]
[Date "2024.02.04"]
[Round "7"]
[White "Graf, Alexander"]
[Black "Kurmann, Oliver"]
[Result "1-0"]
[ECO "C00"]
[WhiteElo "2523"]
[BlackElo "2424"]
[Annotator "ChessBase"]
[PlyCount "87"]
[EventDate "2023.10.20"]
[EventType "team-tourn"]
[EventCountry "GER"]
[SourceTitle "playchess.com"]
[Source "ChessBase"]
[SourceQuality "1"]
[TimeControl "40/6000+30:3000+30"]

1. Nf3 {[%emt 0:00:18]} Nf6 {[%emt 0:00:12]} 2. g3 {[%emt 0:00:36]} d5 {[%emt 0:01:14]} 3. Bg2 {[%emt 0:00:09]} e6 {[%emt 0:00:23]} 4. O-O {[%emt 0:00:24]} Be7 {[%emt 0:00:09]} 5. d3 {[%emt 0:12:26]} O-O {[%emt 0:06:51]} 6. Nbd2 {[%emt 0:00:13]} c5 {[%emt 0:02:04]} 7. e4 {[%emt 0:00:11]} Nc6 {[%emt 0:00:09]} 8. Re1 {[%emt 0:00:16]} b5 {[%emt 0:04:34]} 9. exd5 {[%emt 0:02:22]} Nxd5 {[%emt 0:11:07]} 10. c3 {[%emt 0:05:19]} Bb7 {[%emt 0:04:18]} 11. Ne4 {[%emt 0:03:17]} Qb6 {[%emt 0:06:18]} 12. a3 {[%emt 0:05:36]} Rfd8 {[%emt 0:03:18]} 13. Bg5 {[%emt 0:08:37]} h6 {[%emt 0:12:03]} 14. Bxe7 {[%emt 0:00:56]} Ndxe7 {[%emt 0:00:02]} 15. Qe2 {[%emt 0:01:20]} Rd5 {[%emt 0:00:08]} 16. b4 {[%emt 0:10:26]} cxb4 {[%emt 0:01:12]} 17. axb4 {[%emt 0:00:14]} a5 {[%emt 0:02:02]} 18. bxa5 {[%emt 0:11:44]} Rxa5 {[%emt 0:00:59]} 19. Rxa5 {[%emt 0:00:55]} Qxa5 {[%emt 0:00:41]} 20. Qb2 {[%emt 0:01:31]} b4 {[%emt 0:23:18]} 21. Ra1 {[%emt 0:17:31]} Qc7 {[%emt 0:01:42]} 22. cxb4 {[%emt 0:01:53]} Qb6 {[%emt 0:05:45]} 23. Nfd2 {[%emt 0:07:43]} Qxb4 {[%emt 0:05:15]} 24. Qxb4 {[%emt 0:00:25]} Nxb4 {[%emt 0:00:02]} 25. Ra7 {[%emt 0:00:22]} Rb5 {[%emt 0:12:54]} 26. Nd6 {[%emt 0:06:22]} Bxg2 {[%emt 0:00:07]} 27. Nxb5 {[%emt 0:00:23]} Bc6 {[%emt 0:00:04]} 28. Rxe7 {[%emt 0:00:14]} Nd5 {[%emt 0:00:06]} 29. Ra7 {[%emt 0:00:42]} Bxb5 {[%emt 0:00:03]} 30. Nc4 {[%emt 0:02:14]} f6 {[%emt 0:00:31]} 31. Kf1 {[%emt 0:00:13]} Kh7 {[%emt 0:03:39]} 32. Ke2 {[%emt 0:00:34]} Nb4 {[%emt 0:04:20]} 33. h4 {[%emt 0:02:27]} h5 {[%emt 0:00:44]} 34. Kd2 {[%emt 0:00:31]} Nc6 {[%emt 0:00:28]} 35. Rc7 {[%emt 0:02:03]} Nd4 {[%emt 0:00:06]} 36. Nd6 {[%emt 0:00:23]} Bc6 {[%emt 0:00:17]} 37. Kc3 {[%emt 0:01:22]} e5 {[%emt 0:01:21]} 38. f4 {[%emt 0:01:49]} Bf3 {[%emt 0:00:32]} 39. fxe5 {[%emt 0:00:37]} fxe5 {[%emt 0:00:01]} 40. Kd2 {[%emt 0:00:11]} Bg4 {[%emt 0:00:55]} 41. Ke3 {[%emt 0:52:24]} Kg6 {[%emt 0:09:04]} 42. Rc5 {[%emt 0:00:00]} Kf6 {[%emt 0:02:03]} 43. Nc4 {[%emt 0:00:00]} Nc2+ {[%emt 0:01:20]} 44. Kf2 {[%emt 0:00:00]} 1-0

[Event "German Bundesliga 2023-24"]
[Site "Germany"]
[Date "2024.02.04"]
[Round "7"]
[White "Baidetskyi, Valentin"]
[Black "Maghsoodloo, Parham"]
[Result "0-1"]
[ECO "B51"]
[WhiteElo "2471"]
[BlackElo "2707"]
[Annotator "ChessBase"]
[PlyCount "62"]
[EventDate "2023.10.20"]
[EventType "team-tourn"]
[EventCountry "GER"]
[SourceTitle "playchess.com"]
[Source "ChessBase"]
[SourceQuality "1"]
[TimeControl "40/6000+30:3000+30"]

1. e4 {[%emt 0:00:03]} c5 {[%emt 0:00:09]} 2. Nf3 {[%emt 0:00:08]} d6 {[%emt 0:00:06]} 3. Bb5+ {[%emt 0:00:16]} Nd7 {[%emt 0:00:08]} 4. O-O {[%emt 0:00:14]} a6 {[%emt 0:08:30]} 5. Be2 {[%emt 0:02:10]} Ngf6 {[%emt 0:02:00]} 6. d3 {[%emt 0:00:19]} g6 {[%emt 0:12:06]} 7. c4 {[%emt 0:02:40]} b5 {[%emt 0:13:13]} 8. b3 {[%emt 0:25:43]} Bg7 {[%emt 0:05:58]} 9. Bb2 {[%emt 0:00:12]} O-O {[%emt 0:01:27]} 10. Qc2 {[%emt 0:28:03]} Rb8 {[%emt 0:09:13]} 11. cxb5 {[%emt 0:04:19]} axb5 {[%emt 0:00:14]} 12. d4 {[%emt 0:00:04]} cxd4 {[%emt 0:02:34]} 13. Nxd4 {[%emt 0:05:04]} Bb7 {[%emt 0:00:11]} 14. Nxb5 {[%emt 0:08:03]} Bxe4 {[%emt 0:06:39]} 15. Qd2 {[%emt 0:00:19]} Ba8 {[%emt 0:06:48]} 16. N1c3 {[%emt 0:00:11]} d5 {[%emt 0:00:35]} 17. f4 {[%emt 0:04:23]} e5 {[%emt 0:25:48]} 18. fxe5 {[%emt 0:00:49]} Nxe5 {[%emt 0:00:06]} 19. Qf4 {[%emt 0:03:00]} Nh5 {[%emt 0:04:24]} 20. Qf2 {[%emt 0:01:42]} d4 {[%emt 0:00:14]} 21. Rad1 {[%emt 0:04:05]} d3 {[%emt 0:00:05]} 22. Bxh5 {[%emt 0:02:40]} gxh5 {[%emt 0:00:01]} 23. Qf5 {[%emt 0:03:01]} Rb6 {[%emt 0:06:00]} 24. Qxh5 {[%emt 0:03:12]} Bxg2 {[%emt 0:03:40]} 25. Kxg2 {[%emt 0:04:58]} Rg6+ {[%emt 0:00:09]} 26. Kf2 {[%emt 0:00:04]} Qb6+ {[%emt 0:00:18]} 27. Ke1 {[%emt 0:00:05]} Qe3+ {[%emt 0:00:17]} 28. Ne2 {[%emt 0:00:01]} Rg2 {[%emt 0:00:52]} 29. Nbd4 {[%emt 0:00:50]} dxe2 {[%emt 0:01:53]} 30. Nxe2 {[%emt 0:00:02]} Ng4 {[%emt 0:00:49]} 31. Rd2 {[%emt 0:01:02]} Bxb2 {[%emt 0:00:22]} 0-1

[Event "German Bundesliga 2023-24"]
[Site "Germany"]
[Date "2024.02.04"]
[Round "7"]
[White "Wagner, Dinara"]
[Black "Zeller, Frank"]
[Result "1/2-1/2"]
[ECO "E97"]
[WhiteElo "2459"]
[BlackElo "2335"]
[Annotator "ChessBase"]
[PlyCount "107"]
[EventDate "2023.10.20"]
[EventType "team-tourn"]
[EventCountry "GER"]
[SourceTitle "playchess.com"]
[Source "ChessBase"]
[SourceQuality "1"]
[TimeControl "40/6000+30:3000+30"]

1. d4 {[%emt 0:10:02]} Nf6 {[%emt 0:10:03]} 2. c4 {[%emt 0:00:08]} g6 {[%emt 0:00:04]} 3. Nc3 {[%emt 0:00:05]} Bg7 4. e4 d6 {[%emt 0:00:37]} 5. Nf3 {[%emt 0:00:39]} O-O {[%emt 0:00:00]} 6. Be2 {[%emt 0:00:00]} e5 {[%emt 0:00:54]} 7. O-O {[%emt 0:00:04]} Nc6 8. d5 Ne7 9. Bg5 Nh5 10. Re1 h6 {[%emt 0:01:59]} 11. Bd2 {[%emt 0:02:03]} Nf4 {[%emt 0:00:00]} 12. Bf1 {[%emt 0:07:11]} g5 {[%emt 0:00:00]} 13. g3 {[%emt 0:05:24]} Nfg6 {[%emt 0:00:00]} 14. h3 {[%emt 0:06:34]} f5 {[%emt 0:00:00]} 15. exf5 {[%emt 0:00:04]} Nxf5 {[%emt 0:00:00]} 16. Ne4 {[%emt 0:11:36]} Nd4 {[%emt 0:00:00]} 17. Nxd4 {[%emt 0:22:47]} exd4 {[%emt 0:00:00]} 18. Qh5 {[%emt 0:04:31]} Bf5 {[%emt 0:22:40]} 19. f4 {[%emt 0:22:49]} gxf4 {[%emt 0:09:47]} 20. gxf4 {[%emt 0:00:56]} Qh4 {[%emt 0:02:14]} 21. Qxh4 Nxh4 {[%emt 0:00:01]} 22. Kf2 {[%emt 0:00:27]} Rf7 {[%emt 0:04:50]} 23. Bd3 {[%emt 0:08:02]} Kh8 {[%emt 0:03:24]} 24. Kg3 {[%emt 0:00:18]} Ng6 {[%emt 0:02:25]} 25. Nf2 {[%emt 0:03:44]} Rg8 {[%emt 0:02:43]} 26. Bxf5 {[%emt 0:02:06]} Rxf5 {[%emt 0:00:02]} 27. Kf3 {[%emt 0:01:20]} Ne5+ {[%emt 0:24:46]} 28. Ke4 {[%emt 0:00:26]} Rgf8 {[%emt 0:10:17]} 29. b3 {[%emt 0:00:05]} c6 {[%emt 0:00:20]} 30. Nd3 {[%emt 0:02:30]} cxd5+ {[%emt 0:09:41]} 31. cxd5 {[%emt 0:00:02]} Ng6 {[%emt 0:00:06]} 32. Rg1 {[%emt 0:01:16]} Nh4 {[%emt 0:03:59]} 33. Ne1 {[%emt 0:00:43]} Re8+ {[%emt 0:01:09]} 34. Kd3 {[%emt 0:00:02]} Rxd5 {[%emt 0:00:11]} 35. Rc1 {[%emt 0:01:10]} Rc5 {[%emt 0:00:41]} 36. b4 {[%emt 0:00:36]} Rc6 {[%emt 0:00:59]} 37. Rf1 {[%emt 0:00:37]} Ra6 {[%emt 0:01:33]} 38. Nc2 {[%emt 0:00:37]} Rxa2 {[%emt 0:00:58]} 39. Ra1 {[%emt 0:00:29]} Rxa1 {[%emt 0:02:44]} 40. Rxa1 {[%emt 0:00:02]} a6 {[%emt 0:00:28]} 41. b5 {[%emt 0:13:42]} axb5 {[%emt 0:03:30]} 42. Rb1 {[%emt 0:02:55]} Nf3 {[%emt 0:26:51]} 43. Rxb5 {[%emt 0:06:58]} Nxd2 {[%emt 0:01:00]} 44. Kxd2 {[%emt 0:00:02]} Rc8 {[%emt 0:00:37]} 45. Rxb7 {[%emt 0:01:43]} Rf8 {[%emt 0:06:47]} 46. Rd7 {[%emt 0:00:41]} Rxf4 {[%emt 0:00:30]} 47. Rxd6 {[%emt 0:00:22]} Rh4 {[%emt 0:00:12]} 48. Kd3 {[%emt 0:05:26]} Rxh3+ {[%emt 0:00:58]} 49. Ke4 {[%emt 0:00:02]} Rh4+ {[%emt 0:01:17]} 50. Kd3 {[%emt 0:00:07]} Kh7 {[%emt 0:09:18]} 51. Nxd4 {[%emt 0:00:09]} Bxd4 {[%emt 0:00:32]} 52. Rxd4 {[%emt 0:00:03]} Rh1 {[%emt 0:00:31]} 53. Ke3 {[%emt 0:00:09]} Rf1 {[%emt 0:00:24]} 54. Rf4 {[%emt 0:00:04]} 1/2-1/2

[Event "German Bundesliga 2023-24"]
[Site "Germany"]
[Date "2024.02.04"]
[Round "7"]
[White "Bischoff, Klaus"]
[Black "Heimann, Andreas"]
[Result "1/2-1/2"]
[ECO "D41"]
[WhiteElo "2455"]
[BlackElo "2552"]
[Annotator "ChessBase"]
[PlyCount "190"]
[EventDate "2023.10.20"]
[EventType "team-tourn"]
[EventCountry "GER"]
[SourceTitle "playchess.com"]
[Source "ChessBase"]
[SourceQuality "1"]
[TimeControl "40/6000+30:3000+30"]

1. d4 {[%emt 0:00:11]} Nf6 {[%emt 0:00:06]} 2. Nf3 {[%emt 0:00:16]} d5 {[%emt 0:00:05]} 3. c4 {[%emt 0:00:18]} e6 {[%emt 0:00:06]} 4. Nc3 {[%emt 0:00:17]} c5 {[%emt 0:01:19]} 5. cxd5 {[%emt 0:01:28]} cxd4 {[%emt 0:00:08]} 6. Qa4+ {[%emt 0:04:03]} Bd7 {[%emt 0:06:41]} 7. Qxd4 {[%emt 0:00:28]} exd5 {[%emt 0:00:07]} 8. e3 {[%emt 0:05:37]} Nc6 {[%emt 0:01:28]} 9. Qd1 {[%emt 0:01:24]} Bb4 {[%emt 0:03:01]} 10. Bd2 {[%emt 0:02:53]} O-O {[%emt 0:05:32]} 11. Be2 {[%emt 0:02:44]} Be6 {[%emt 0:02:06]} 12. a3 {[%emt 0:09:54]} Bxc3 {[%emt 0:04:46]} 13. Bxc3 {[%emt 0:00:26]} Ne4 {[%emt 0:00:03]} 14. Bd4 {[%emt 0:05:02]} Nxd4 {[%emt 0:06:43]} 15. Qxd4 {[%emt 0:00:23]} Qa5+ {[%emt 0:00:20]} 16. Qb4 {[%emt 0:03:06]} Qxb4+ {[%emt 0:00:43]} 17. axb4 {[%emt 0:00:03]} Rfc8 {[%emt 0:00:09]} 18. Nd4 {[%emt 0:02:16]} Nd6 {[%emt 0:00:53]} 19. Bd3 {[%emt 0:06:15]} Nc4 {[%emt 0:04:32]} 20. Bxc4 {[%emt 0:00:42]} Rxc4 {[%emt 0:00:04]} 21. b5 {[%emt 0:00:25]} Kf8 {[%emt 0:30:53]} 22. Kd2 {[%emt 0:00:36]} Ke7 {[%emt 0:00:13]} 23. Ra3 {[%emt 0:06:24]} Kd6 {[%emt 0:18:26]} 24. Rha1 {[%emt 0:00:28]} Kc7 {[%emt 0:00:04]} 25. Rxa7 {[%emt 0:01:08]} Rxa7 {[%emt 0:00:04]} 26. Rxa7 {[%emt 0:00:12]} Kb6 {[%emt 0:00:04]} 27. Ra8 {[%emt 0:00:28]} Bc8 {[%emt 0:00:45]} 28. h4 {[%emt 0:03:39]} h5 {[%emt 0:07:12]} 29. Ke2 {[%emt 0:04:40]} f6 {[%emt 0:10:34]} 30. Kd2 {[%emt 0:02:14]} Rc7 {[%emt 0:00:24]} 31. Ra3 {[%emt 0:01:21]} g5 {[%emt 0:05:03]} 32. hxg5 {[%emt 0:02:35]} fxg5 {[%emt 0:00:02]} 33. Rc3 {[%emt 0:00:10]} Bg4 {[%emt 0:02:11]} 34. Rxc7 {[%emt 0:09:08]} Kxc7 {[%emt 0:00:01]} 35. f4 {[%emt 0:00:15]} gxf4 {[%emt 0:00:09]} 36. exf4 {[%emt 0:00:07]} h4 {[%emt 0:00:25]} 37. f5 {[%emt 0:01:44]} Kd6 {[%emt 0:01:28]} 38. f6 {[%emt 0:00:16]} Bh5 {[%emt 0:00:28]} 39. Ke3 {[%emt 0:04:57]} Ke5 {[%emt 0:00:01]} 40. Nf3+ {[%emt 0:01:06]} Kxf6 {[%emt 0:00:07]} 41. Nxh4 {[%emt 0:50:06]} Be8 {[%emt 0:51:01]} 42. b6 {[%emt 0:01:48]} Ke5 {[%emt 0:00:00]} 43. Nf3+ {[%emt 0:00:00]} Kd6 {[%emt 0:00:00]} 44. b4 {[%emt 0:00:00]} Kc6 {[%emt 0:00:00]} 45. Nd4+ {[%emt 0:00:00]} Kxb6 {[%emt 0:00:00]} 46. Kf4 {[%emt 0:00:00]} Kc7 {[%emt 0:00:00]} 47. Ke5 {[%emt 0:00:00]} Bf7 {[%emt 0:00:00]} 48. g4 {[%emt 0:00:00]} Kd7 {[%emt 0:00:00]} 49. g5 {[%emt 0:00:00]} Ke7 {[%emt 0:00:00]} 50. Nf5+ {[%emt 0:00:00]} Kd7 {[%emt 0:00:00]} 51. Nd6 {[%emt 0:00:00]} d4 {[%emt 0:00:00]} 52. Nxb7 {[%emt 0:00:00]} Kc6 {[%emt 0:00:00]} 53. Nd8+ {[%emt 0:00:00]} Kd7 {[%emt 0:00:00]} 54. Nxf7 {[%emt 0:00:00]} d3 {[%emt 0:00:00]} 55. g6 {[%emt 0:00:00]} d2 {[%emt 0:00:00]} 56. g7 {[%emt 0:00:00]} d1=Q {[%emt 0:00:00]} 57. g8=Q {[%emt 0:00:00]} Qe1+ {[%emt 0:00:00]} 58. Kf6 {[%emt 0:00:00]} Qe7+ {[%emt 0:00:00]} 59. Kg6 {[%emt 0:00:00]} Qxb4 {[%emt 0:00:00]} 60. Ne5+ {[%emt 0:00:00]} Kc7 {[%emt 0:00:00]} 61. Qf7+ {[%emt 0:00:00]} Kb6 {[%emt 0:00:00]} 62. Qe6+ {[%emt 0:00:00]} Kb7 {[%emt 0:00:00]} 63. Qd5+ {[%emt 0:00:00]} Kb6 {[%emt 0:02:15]} 64. Qd8+ {[%emt 0:00:00]} Kb7 {[%emt 0:00:05]} 65. Qd5+ {[%emt 0:00:00]} Kb6 {[%emt 0:00:02]} 66. Kf7 {[%emt 0:00:00]} Qf4+ {[%emt 0:01:10]} 67. Ke8 {[%emt 0:00:00]} Qa4+ {[%emt 0:01:02]} 68. Nd7+ {[%emt 0:00:00]} Kc7 {[%emt 0:01:17]} 69. Qe5+ {[%emt 0:00:00]} Kb7 {[%emt 0:00:05]} 70. Qb8+ {[%emt 0:00:00]} Kc6 {[%emt 0:00:03]} 71. Qc8+ {[%emt 0:00:00]} Kd5 {[%emt 0:00:06]} 72. Qc5+ {[%emt 0:00:00]} Ke4 {[%emt 0:00:02]} 73. Ke7 {[%emt 0:00:00]} Qd4 {[%emt 0:01:13]} 74. Qg5 {[%emt 0:00:02]} Qb4+ {[%emt 0:01:29]} 75. Ke8 {[%emt 0:00:53]} Qd4 {[%emt 0:03:33]} 76. Nc5+ {[%emt 0:00:54]} Kf3 {[%emt 0:00:07]} 77. Qf5+ {[%emt 0:00:32]} Qf4 {[%emt 0:00:50]} 78. Qd5+ {[%emt 0:00:21]} Kg4 {[%emt 0:00:24]} 79. Ne4 {[%emt 0:00:21]} Qf5 {[%emt 0:01:12]} 80. Qd4 {[%emt 0:00:46]} Kf3 {[%emt 0:02:38]} 81. Nd2+ {[%emt 0:00:41]} Ke2 {[%emt 0:00:06]} 82. Ne4 {[%emt 0:00:33]} Kf3 {[%emt 0:00:21]} 83. Nf6 {[%emt 0:00:10]} Qc8+ {[%emt 0:00:26]} 84. Kf7 {[%emt 0:00:12]} Qc7+ {[%emt 0:00:28]} 85. Kg6 {[%emt 0:00:33]} Qg3+ {[%emt 0:00:03]} 86. Kf5 {[%emt 0:00:11]} Qh3+ {[%emt 0:00:07]} 87. Ke5 {[%emt 0:00:16]} Qh2+ {[%emt 0:00:10]} 88. Kd5 {[%emt 0:00:16]} Qa2+ {[%emt 0:00:19]} 89. Ke5 {[%emt 0:01:07]} Qh2+ {[%emt 0:00:34]} 90. Ke6 {[%emt 0:00:11]} Qe2+ {[%emt 0:00:52]} 91. Kf5 {[%emt 0:00:40]} Qc2+ {[%emt 0:00:19]} 92. Kg5 {[%emt 0:00:12]} Qc1+ {[%emt 0:00:40]} 93. Kf5 {[%emt 0:01:24]} Qc2+ {[%emt 0:00:07]} 94. Ne4 {[%emt 0:00:14]} Qc8+ {[%emt 0:00:29]} 95. Kg6 {[%emt 0:00:43]} Qe8+ {[%emt 0:00:21]} 1/2-1/2

[Event "German Bundesliga 2023-24"]
[Site "Germany"]
[Date "2024.02.04"]
[Round "7"]
[White "Kjartansson, Gudmundur"]
[Black "Amin, Bassem"]
[Result "1/2-1/2"]
[ECO "C95"]
[WhiteElo "2453"]
[BlackElo "2680"]
[Annotator "ChessBase"]
[PlyCount "123"]
[EventDate "2023.10.20"]
[EventType "team-tourn"]
[EventCountry "GER"]
[SourceTitle "playchess.com"]
[Source "ChessBase"]
[SourceQuality "1"]
[TimeControl "40/6000+30:3000+30"]

1. e4 {[%emt 0:00:05]} e5 {[%emt 0:01:08]} 2. Nf3 {[%emt 0:00:10]} Nc6 {[%emt 0:00:05]} 3. Bb5 {[%emt 0:00:10]} a6 {[%emt 0:00:27]} 4. Ba4 {[%emt 0:00:06]} Nf6 {[%emt 0:00:17]} 5. O-O {[%emt 0:00:22]} Be7 {[%emt 0:00:27]} 6. Re1 {[%emt 0:00:14]} b5 {[%emt 0:00:06]} 7. Bb3 {[%emt 0:00:13]} d6 {[%emt 0:00:10]} 8. c3 {[%emt 0:00:12]} O-O {[%emt 0:00:05]} 9. h3 {[%emt 0:00:14]} Nb8 {[%emt 0:02:45]} 10. d4 {[%emt 0:00:10]} Nbd7 {[%emt 0:00:05]} 11. c4 {[%emt 0:00:26]} c6 {[%emt 0:00:05]} 12. a3 {[%emt 0:00:38]} Bb7 {[%emt 0:01:34]} 13. Nc3 {[%emt 0:00:24]} exd4 {[%emt 0:09:10]} 14. Nxd4 {[%emt 0:00:18]} Nc5 {[%emt 0:12:14]} 15. cxb5 {[%emt 0:11:23]} cxb5 {[%emt 0:01:07]} 16. Bc2 {[%emt 0:08:45]} Re8 {[%emt 0:03:04]} 17. Nf5 {[%emt 0:17:19]} Bf8 {[%emt 0:01:08]} 18. f3 {[%emt 0:08:36]} Rc8 {[%emt 0:25:56]} 19. Bg5 {[%emt 0:06:31]} Ne6 {[%emt 0:16:04]} 20. Bh4 {[%emt 0:03:49]} Qb6+ {[%emt 0:01:29]} 21. Bf2 {[%emt 0:14:36]} Qd8 {[%emt 0:00:17]} 22. Bb3 {[%emt 0:07:15]} g6 {[%emt 0:01:58]} 23. Ne3 {[%emt 0:00:54]} Nf4 {[%emt 0:06:31]} 24. Qd2 {[%emt 0:08:35]} d5 {[%emt 0:08:52]} 25. Nexd5 {[%emt 0:02:36]} N6xd5 {[%emt 0:01:54]} 26. Bxd5 {[%emt 0:11:59]} Qg5 {[%emt 0:05:37]} 27. Be3 {[%emt 0:00:53]} Bc5 {[%emt 0:00:22]} 28. Bxb7 {[%emt 0:01:13]} Rcd8 {[%emt 0:00:18]} 29. Bd5 {[%emt 0:02:10]} Bxe3+ {[%emt 0:03:54]} 30. Rxe3 {[%emt 0:00:04]} Nxd5 {[%emt 0:00:28]} 31. Nxd5 {[%emt 0:00:39]} Rxd5 {[%emt 0:00:03]} 32. Qf2 {[%emt 0:02:34]} Rd4 {[%emt 0:02:23]} 33. f4 {[%emt 0:01:10]} Qf6 {[%emt 0:02:39]} 34. Rae1 {[%emt 0:00:07]} Red8 {[%emt 0:00:12]} 35. Kh2 {[%emt 0:01:01]} Rd2 {[%emt 0:00:15]} 36. R1e2 {[%emt 0:01:58]} Qxb2 {[%emt 0:00:17]} 37. e5 {[%emt 0:00:12]} Rxe2 {[%emt 0:01:30]} 38. Rxe2 {[%emt 0:00:47]} Qd4 {[%emt 0:04:01]} 39. Qf3 {[%emt 0:00:31]} Qd5 {[%emt 0:00:23]} 40. Qe3 {[%emt 0:00:38]} Qd4 {[%emt 0:00:29]} 41. Qf3 {[%emt 0:01:38]} Qd5 {[%emt 0:04:36]} 42. Qe3 {[%emt 0:00:53]} Qe6 {[%emt 0:04:49]} 43. Rf2 {[%emt 0:14:50]} Rd5 {[%emt 0:04:17]} 44. Rf3 {[%emt 0:02:46]} a5 {[%emt 0:02:52]} 45. Qc3 {[%emt 0:05:52]} a4 {[%emt 0:00:57]} 46. Qe3 {[%emt 0:05:37]} Qf5 {[%emt 0:01:35]} 47. Qc3 {[%emt 0:04:07]} h6 {[%emt 0:02:25]} 48. Qc6 {[%emt 0:04:31]} Rd4 {[%emt 0:05:08]} 49. e6 {[%emt 0:03:23]} Qxe6 {[%emt 0:01:15]} 50. Qxb5 {[%emt 0:00:09]} Qd6 {[%emt 0:00:11]} 51. Qe8+ {[%emt 0:05:10]} Kg7 {[%emt 0:00:02]} 52. Qe3 {[%emt 0:01:39]} g5 {[%emt 0:00:34]} 53. Qe5+ {[%emt 0:00:32]} Qxe5 {[%emt 0:00:12]} 54. fxe5 {[%emt 0:00:03]} Re4 {[%emt 0:01:25]} 55. Rc3 {[%emt 0:00:23]} h5 {[%emt 0:02:34]} 56. Rc5 {[%emt 0:01:46]} Re3 {[%emt 0:02:51]} 57. e6 {[%emt 0:00:12]} f6 {[%emt 0:00:49]} 58. Rc7+ {[%emt 0:00:06]} Kg6 {[%emt 0:00:16]} 59. Rc4 {[%emt 0:00:15]} Rxe6 {[%emt 0:04:11]} 60. Rxa4 {[%emt 0:00:07]} Re3 {[%emt 0:00:34]} 61. g4 {[%emt 0:01:42]} h4 {[%emt 0:00:48]} 62. Ra7 {[%emt 0:01:05]} 1/2-1/2